[Event "5th Cesme Open 2017"]
[Site "Cesme"]
[Date "2017.06.13"]
[Round "3.21"]
[White "Daloglu, Berkay"]
[Black "Alkan, Sukru"]
[Result "0-1"]
[ECO "A12"]
[WhiteElo "1659"]
[BlackElo "1571"]
[Annotator "NA"]
[PlyCount "116"]
[EventType "swiss"]
[EventCountry "TUR"]
[SourceTitle "playchess.com"]
[Source "ChessBase"]
[SourceQuality "1"]
[TimeControl "5400+30"]

1. Nf3 {[%emt 0:00:30]} d5 {[%emt 0:01:00]} 2. c4 {[%emt 0:00:30]} c6 {[%emt 0:00:00]} 3. b3 {[%emt 0:00:30]} Bf5 {[%emt 0:00:00]} 4. Bb2 {[%emt 0:00:30]} e6 {[%emt 0:00:30]} 5. g3 {[%emt 0:00:00]} Nf6 {[%emt 0:00:30]} 6. Bg2 {[%emt 0:00:00]} Be7 {[%emt 0:00:00]} 7. O-O {[%emt 0:02:30]} h6 {[%emt 0:00:00]} 8. d3 {[%emt 0:01:30]} O-O {[%emt 0:03:30]} 9. Nbd2 {[%emt 0:02:30]} Nbd7 {[%emt 0:00:00]} 10. Re1 {[%emt 0:01:30]} Bh7 {[%emt 0:01:00] [%clk 1:29]} 11. Rc1 {[%emt 0:14:30]} Re8 {[%emt 0:00:30]} 12. d4 {[%emt 0:08:30]} Ne4 {[%emt 0:01:30]} 13. Nxe4 {[%emt 0:02:30]} Bxe4 {[%emt 0:01:30]} 14. Nd2 {[%emt 0:00:30]} Bxg2 {[%emt 0:02:30]} 15. Kxg2 {[%emt 0:00:30]} Bb4 {[%emt 0:00:30]} 16. a3 {[%emt 0:00:30]} Ba5 {[%emt 0:00:30]} 17. b4 {[%emt 0:00:30]} Bc7 {[%emt 0:00:30]} 18. e4 {[%emt 0:01:30]} dxc4 {[%emt 0:07:30]} 19. Nxc4 {[%emt 0:01:30]} Nb6 {[%emt 0:00:30]} 20. Qc2 {[%emt 0:08:30]} Qg5 {[%emt 0:03:30]} 21. Qd2 {[%emt 0:20:30]} Qb5 {[%emt 0:08:30]} 22. Qe2 {[%emt 0:10:30]} Rad8 {[%emt 0:01:30]} 23. Na5 {[%emt 0:02:12]} Qxe2 {[%emt 0:02:30]} 24. Rxe2 {[%emt 0:00:08]} Na4 {[%emt 0:00:30]} 25. Nxb7 {[%emt 0:01:49]} Rd7 {[%emt 0:00:30]} 26. Rxc6 {[%emt 0:05:47]} Nxb2 {[%emt 0:00:30]} 27. Rxb2 {[%emt 0:00:01]} Bb6 {[%emt 0:00:30]} 28. Nd6 {[%emt 0:04:29]} Red8 {[%emt 0:00:30]} 29. Nb5 {[%emt 0:04:55]} Bxd4 {[%emt 0:00:30]} 30. Rbc2 {[%emt 0:00:32]} Bb6 {[%emt 0:00:30]} 31. a4 {[%emt 0:02:19]} Rd2 {[%emt 0:00:30]} 32. Rc8 {[%emt 0:02:48]} Rxc2 {[%emt 0:03:30]} 33. Rxc2 {[%emt 0:00:31]} a6 {[%emt 0:00:30]} 34. Nc7 {[%emt 0:00:54]} Rc8 {[%emt 0:00:30]} 35. Rc6 {[%emt 0:00:25]} Bxc7 {[%emt 0:00:30]} 36. b5 {[%emt 0:00:12]} axb5 {[%emt 0:00:30]} 37. axb5 {[%emt 0:00:00]} Rb8 {[%emt 0:00:30]} 38. Rxc7 {[%emt 0:00:29]} Rxb5 {[%emt 0:00:30]} 39. Rc8+ {[%emt 0:00:30]} Kh7 {[%emt 0:00:30]} 40. h4 {[%emt 0:00:35]} h5 {[%emt 0:00:00]} 41. Kf3 {[%emt 0:00:08]} Kg6 {[%emt 0:00:00]} 42. Rc4 {[%emt 0:01:24]} f6 {[%emt 0:00:30]} 43. g4 {[%emt 0:00:30]} Rb3+ {[%emt 0:00:30]} 44. Kg2 {[%emt 0:00:44]} hxg4 {[%emt 0:00:30]} 45. e5 {[%emt 0:00:35]} Kf5 {[%emt 0:00:30]} 46. exf6 {[%emt 0:00:25]} gxf6 {[%emt 0:00:30]} 47. Rc7 {[%emt 0:00:19]} Rh3 {[%emt 0:00:30]} 48. Rh7 {[%emt 0:00:15]} e5 {[%emt 0:00:30]} 49. Rh8 {[%emt 0:00:21]} e4 {[%emt 0:01:30]} 50. Rh7 {[%emt 0:00:51]} e3 {[%emt 0:00:30]} 51. fxe3 {[%emt 0:00:35]} Rxe3 {[%emt 0:00:00]} 52. Rh8 {[%emt 0:00:41]} Kf4 {[%emt 0:00:00]} 53. Rg8 {[%emt 0:00:33]} Rh3 {[%emt 0:00:30]} 54. Rh8 {[%emt 0:00:25]} f5 {[%emt 0:00:30]} 55. Rh7 {[%emt 0:00:28]} Ra3 {[%emt 0:00:30]} 56. Rb7 {[%emt 0:00:34]} Ra2+ {[%emt 0:00:00]} 57. Kh1 {[%emt 0:00:31]} Kg3 {[%emt 0:00:00]} 58. Rf7 {[%emt 0:00:30]} Ra1# {[%emt 0:00:30]} 0-1

[Event "5th Cesme Open 2017"]
[Site "Cesme"]
[Date "2017.06.13"]
[Round "3.22"]
[White "Katipoglu, Engin"]
[Black "Ekici, Caner"]
[Result "1/2-1/2"]
[ECO "D37"]
[WhiteElo "1569"]
[BlackElo "1681"]
[Annotator "NA RC"]
[PlyCount "112"]
[EventType "swiss"]
[EventCountry "TUR"]
[SourceTitle "playchess.com"]
[Source "ChessBase"]
[SourceQuality "1"]
[TimeControl "5400+30"]

1. d4 {[%emt 0:00:30]} d5 {[%emt 0:01:00]} 2. Bf4 {[%emt 0:00:00]} Nf6 {[%emt 0:00:00]} 3. e3 {[%emt 0:00:00]} c6 {[%emt 0:00:00]} 4. c4 {[%emt 0:00:30]} e6 {[%emt 0:01:30]} 5. Nc3 {[%emt 0:02:30]} Nbd7 {[%emt 0:00:30]} 6. Nf3 {[%emt 0:00:30]} Be7 {[%emt 0:00:30]} 7. h3 {[%emt 0:00:30]} O-O {[%emt 0:00:00]} 8. Bd3 {[%emt 0:01:30]} dxc4 {[%emt 0:09:00] [%clk 1:22]} 9. Bxc4 {[%emt 0:04:30]} b5 {[%emt 0:00:30]} 10. Bd3 {[%emt 0:01:30]} Bb7 {[%emt 0:00:30]} 11. O-O {[%emt 0:02:30]} a5 {[%emt 0:13:30]} 12. Rc1 {[%emt 0:05:30]} Qb6 {[%emt 0:02:30]} 13. e4 {[%emt 0:08:30]} Rfd8 {[%emt 0:01:30]} 14. Be3 {[%emt 0:01:30]} Ba6 {[%emt 0:08:30]} 15. Qe2 {[%emt 0:08:30]} Qb7 {[%emt 0:02:30]} 16. e5 {[%emt 0:09:30]} Nd5 {[%emt 0:08:30]} 17. Nxd5 {[%emt 0:14:30]} cxd5 {[%emt 0:00:30]} 18. Ng5 {[%emt 0:00:30]} Nf8 {[%emt 0:05:30]} 19. Qh5 {[%emt 0:03:30]} Bxg5 {[%emt 0:02:30]} 20. Bxg5 {[%emt 0:00:30]} Rdc8 {[%emt 0:00:30]} 21. Qg4 {[%emt 0:11:30]} b4 {[%emt 0:04:30]} 22. Bxa6 {[%emt 0:00:30]} Qxa6 {[%emt 0:00:30]} 23. h4 {[%emt 0:00:30]} Rc4 {[%emt 0:10:30]} 24. h5 {[%emt 0:00:30]} Rac8 {[%emt 0:00:00]} 25. Bf6 {[%emt 0:04:11]} g6 {[%emt 0:16:29]} 26. Qf4 {[%emt 0:01:53]} Rxc1 {[%emt 0:00:09]} 27. Rxc1 {[%emt 0:02:13]} Rxc1+ {[%emt 0:00:01]} 28. Qxc1 {[%emt 0:00:12]} Qe2 {[%emt 0:00:02]} 29. Qh6 {[%emt 0:00:19]} Qd1+ {[%emt 0:00:03]} 30. Kh2 {[%emt 0:01:25]} Qxh5+ {[%emt 0:00:02]} 31. Qxh5 {[%emt 0:00:09]} gxh5 {[%emt 0:00:06]} 32. b3 {[%emt 0:00:19]} Nd7 {[%emt 0:01:53]} 33. Bd8 {[%emt 0:00:14]} Nb8 {[%emt 0:00:03]} 34. Bxa5 {[%emt 0:00:07]} Nc6 {[%emt 0:00:01]} 35. Bb6 {[%emt 0:00:20]} Kg7 {[%emt 0:00:01]} 36. Kg3 {[%emt 0:00:52]} Kg6 {[%emt 0:00:08]} 37. Kh4 {[%emt 0:01:20]} Ne7 {[%emt 0:00:51]} 38. Bc5 {[%emt 0:01:05]} Nc6 {[%emt 0:00:02]} 39. f3 {[%emt 0:00:53]} Kh6 {[%emt 0:00:02]} 40. Kg3 {[%emt 0:04:51]} Kg5 {[%emt 0:00:16]} 41. f4+ {[%emt 0:00:14]} Kf5 {[%emt 0:00:24]} 42. Kf3 {[%emt 0:00:56]} h4 {[%emt 0:00:16]} 43. Bb6 {[%emt 0:02:48]} Nb8 {[%emt 0:02:09]} 44. Ba5 {[%emt 0:02:27]} Nc6 {[%emt 0:00:07]} 45. Bb6 {[%emt 0:00:03]} Nb8 {[%emt 0:00:08]} 46. Ba5 {[%emt 0:00:02]} Nc6 {[%emt 0:00:09]} 47. Bb6 {[%emt 0:00:16]} Nb8 {[%emt 0:00:14]} 48. Bc7 {[%emt 0:00:03]} Nc6 {[%emt 0:00:05]} 49. Bb6 {[%emt 0:00:02]} Nb8 {[%emt 0:00:12]} 50. Bc7 {[%emt 0:00:07]} Nc6 {[%emt 0:00:03]} 51. Bb6 {[%emt 0:00:03]} Nb8 {[%emt 0:00:05]} 52. Ba7 {[%emt 0:00:18]} Nc6 {[%emt 0:00:04]} 53. Bc5 {[%emt 0:00:14]} h5 {[%emt 0:00:59]} 54. Bb6 {[%emt 0:04:59]} Kg6 {[%emt 0:00:24]} 55. Bc5 {[%emt 0:00:56]} Kf5 {[%emt 0:00:01]} 56. Bb6 {[%emt 0:00:13]} Kg6 {[%emt 0:00:02]} 1/2-1/2

[Event "5th Cesme Open 2017"]
[Site "Cesme"]
[Date "2017.06.13"]
[Round "3.23"]
[White "Ersoy, Bora"]
[Black "Turkol, Efe Doruk"]
[Result "1-0"]
[ECO "E00"]
[WhiteElo "1675"]
[BlackElo "1378"]
[Annotator "NA RC"]
[PlyCount "93"]
[EventType "swiss"]
[EventCountry "TUR"]
[SourceTitle "playchess.com"]
[Source "ChessBase"]
[SourceQuality "1"]
[TimeControl "5400+30"]

1. d4 {[%emt 0:00:30]} Nf6 {[%emt 0:01:00]} 2. c4 {[%emt 0:00:00]} e6 {[%emt 0:00:00]} 3. Bg5 {[%emt 0:00:00]} Be7 {[%emt 0:00:00]} 4. Nc3 {[%emt 0:00:30]} b6 {[%emt 0:00:30]} 5. e4 {[%emt 0:02:30]} Bb7 {[%emt 0:03:30]} 6. Bxf6 {[%emt 0:09:30]} Bxf6 {[%emt 0:00:30]} 7. Nf3 {[%emt 0:00:30]} O-O {[%emt 0:00:30]} 8. Bd3 {[%emt 0:01:30] [%clk 1:19]} d5 {[%emt 0:04:30]} 9. e5 {[%emt 0:03:30]} Be7 {[%emt 0:00:00]} 10. Qc2 {[%emt 0:01:30]} g6 {[%emt 0:01:00]} 11. O-O-O {[%emt 0:01:30]} Na6 {[%emt 0:04:30]} 12. a3 {[%emt 0:00:30]} Rc8 {[%emt 0:01:30]} 13. cxd5 {[%emt 0:10:30]} exd5 {[%emt 0:00:30]} 14. h4 {[%emt 0:05:30]} c5 {[%emt 0:05:30]} 15. h5 {[%emt 0:15:30]} Kg7 {[%emt 0:05:30]} 16. e6 {[%emt 0:26:50]} Bg5+ {[%emt 0:11:30]} 17. Kb1 {[%emt 0:00:31]} Qf6 {[%emt 0:26:30]} 18. exf7 {[%emt 0:04:19]} cxd4 {[%emt 0:07:30]} 19. hxg6 {[%emt 0:00:27]} h6 {[%emt 0:10:22]} 20. Nxd4 {[%emt 0:00:58]} Nc5 {[%emt 0:05:01]} 21. Nf5+ {[%emt 0:02:08]} Kxg6 {[%emt 0:01:55]} 22. Nd6+ {[%emt 0:06:36]} Kg7 {[%emt 0:00:36]} 23. Nxc8 {[%emt 0:01:17]} Rxc8 {[%emt 0:00:11]} 24. Bf5 {[%emt 0:01:10]} Rd8 {[%emt 0:00:50]} 25. g4 {[%emt 0:00:36]} d4 {[%emt 0:00:53]} 26. Ne4 {[%emt 0:00:03]} Nxe4 {[%emt 0:00:10]} 27. Bxe4 {[%emt 0:00:03]} Qxf7 {[%emt 0:00:48]} 28. Bxb7 {[%emt 0:00:45]} Qxb7 {[%emt 0:00:11]} 29. Rhe1 {[%emt 0:00:20]} Qd7 {[%emt 0:01:33]} 30. Qe4 {[%emt 0:01:41]} d3 {[%emt 0:00:58]} 31. f4 {[%emt 0:01:07]} d2 {[%emt 0:02:07]} 32. Rh1 {[%emt 0:01:57]} Qxg4 {[%emt 0:01:02]} 33. Rhg1 {[%emt 0:00:54]} Qh4 {[%emt 0:00:36]} 34. Rxg5+ {[%emt 0:00:32]} hxg5 {[%emt 0:00:57]} 35. Qe7+ {[%emt 0:00:03]} Kg6 {[%emt 0:00:14]} 36. Qxd8 {[%emt 0:00:19]} Qxf4 {[%emt 0:00:09]} 37. Qxd2 {[%emt 0:00:10]} Qg3 {[%emt 0:00:30]} 38. Qd3+ {[%emt 0:00:05]} Qxd3+ {[%emt 0:00:10]} 39. Rxd3 {[%emt 0:00:03]} Kf5 {[%emt 0:00:02]} 40. Kc2 {[%emt 0:00:25]} g4 {[%emt 0:00:05]} 41. Rd8 {[%emt 0:00:11]} g3 {[%emt 0:00:11]} 42. Kc3 {[%emt 0:00:00]} Kf4 {[%emt 0:01:18]} 43. Kc4 {[%emt 0:00:15]} Kf3 {[%emt 0:00:09]} 44. Rg8 {[%emt 0:00:03]} g2 {[%emt 0:00:02]} 45. Kb5 {[%emt 0:00:05]} Kf2 {[%emt 0:00:04]} 46. Ka6 {[%emt 0:00:07]} g1=Q {[%emt 0:00:05]} 47. Kxa7 {[%emt 0:00:00]} 1-0

[Event "5th Cesme Open 2017"]
[Site "Cesme"]
[Date "2017.06.13"]
[Round "3.24"]
[White "Yildirim, Mehmet Fatih"]
[Black "Rahmani, Jamshid"]
[Result "0-1"]
[ECO "B08"]
[WhiteElo "1529"]
[BlackElo "1692"]
[Annotator "NA RC"]
[PlyCount "130"]
[EventType "swiss"]
[EventCountry "TUR"]
[SourceTitle "playchess.com"]
[Source "ChessBase"]
[SourceQuality "1"]
[TimeControl "5400+30"]

1. e4 {[%emt 0:00:30]} d6 {[%emt 0:01:00]} 2. d4 {[%emt 0:00:00]} Nf6 {[%emt 0:00:00]} 3. Nc3 {[%emt 0:00:00]} g6 {[%emt 0:00:00]} 4. Nf3 {[%emt 0:00:00]} Bg7 {[%emt 0:00:30]} 5. Be2 {[%emt 0:00:00]} O-O {[%emt 0:00:30]} 6. O-O {[%emt 0:00:30]} Nbd7 {[%emt 0:01:30]} 7. e5 {[%emt 0:00:00]} dxe5 {[%emt 0:00:30]} 8. dxe5 {[%emt 0:00:00]} Ng4 {[%emt 0:01:30]} 9. e6 {[%emt 0:00:30]} fxe6 {[%emt 0:00:30]} 10. Ng5 {[%emt 0:00:30]} Ndf6 {[%emt 0:01:30]} 11. Bxg4 {[%emt 0:00:30]} Qxd1 {[%emt 0:02:30]} 12. Bxd1 {[%emt 0:00:00]} Nd5 {[%emt 0:00:30]} 13. Nxd5 {[%emt 0:04:00]} exd5 {[%emt 0:00:30]} 14. c3 {[%emt 0:00:30]} e5 {[%emt 0:01:30]} 15. Nf3 {[%emt 0:00:30] [%clk 1:29]} c5 {[%emt 0:01:30]} 16. Bb3 {[%emt 0:01:30]} c4 {[%emt 0:03:30]} 17. Bd1 {[%emt 0:02:30]} Bd7 {[%emt 0:04:30]} 18. Be3 {[%emt 0:00:30]} b6 {[%emt 0:00:30]} 19. h3 {[%emt 0:03:30]} Bf5 {[%emt 0:03:30]} 20. Be2 {[%emt 0:00:30]} Rad8 {[%emt 0:04:30]} 21. Rad1 {[%emt 0:00:30]} Rd7 {[%emt 0:00:30]} 22. Rxd5 {[%emt 0:08:30]} Rxd5 {[%emt 0:01:30]} 23. Bxc4 {[%emt 0:00:30]} Rfd8 {[%emt 0:00:30]} 24. Rd1 {[%emt 0:03:30]} Be6 {[%emt 0:00:30]} 25. Bxd5 {[%emt 0:02:30]} Rxd5 {[%emt 0:00:00]} 26. Rxd5 {[%emt 0:00:30]} Bxd5 {[%emt 0:00:00]} 27. b3 {[%emt 0:00:00]} Be4 {[%emt 0:01:30]} 28. Nd2 {[%emt 0:01:00]} Bd3 {[%emt 0:01:30]} 29. f3 {[%emt 0:00:00]} Kf7 {[%emt 0:00:30]} 30. g4 {[%emt 0:01:00]} Bf6 {[%emt 0:00:30]} 31. g5 {[%emt 0:01:30]} Be7 {[%emt 0:01:30]} 32. b4 {[%emt 0:06:30]} Ke6 {[%emt 0:01:30]} 33. Ne4 {[%emt 0:01:30]} Kd5 {[%emt 0:04:30]} 34. Nd2 {[%emt 0:00:30]} b5 {[%emt 0:09:30]} 35. h4 {[%emt 0:01:30]} a6 {[%emt 0:00:30]} 36. Kf2 {[%emt 0:04:30]} Bd6 {[%emt 0:00:30]} 37. a3 {[%emt 0:03:30]} Bc7 {[%emt 0:01:30]} 38. Bc5 {[%emt 0:01:30]} a5 {[%emt 0:00:30]} 39. Ke3 {[%emt 0:00:30]} Bf5 {[%emt 0:01:30]} 40. Ba7 {[%emt 0:09:30]} a4 {[%emt 0:00:30]} 41. Bc5 {[%emt 0:01:30]} Bd8 {[%emt 0:04:30]} 42. Ba7 {[%emt 0:01:30]} h6 {[%emt 0:01:30]} 43. gxh6 {[%emt 0:10:30]} Bxh4 {[%emt 0:00:30]} 44. Ke2 {[%emt 0:00:30]} Bf6 {[%emt 0:03:30]} 45. Be3 {[%emt 0:04:30]} g5 {[%emt 0:02:30]} 46. Bc5 {[%emt 0:09:30]} g4 {[%emt 0:01:30]} 47. fxg4 {[%emt 0:02:26]} Bxg4+ {[%emt 0:00:30]} 48. Kf2 {[%emt 0:00:11]} Bf5 {[%emt 0:00:30]} 49. Kf3 {[%emt 0:06:00]} Bg6 {[%emt 0:04:30]} 50. Nf1 {[%emt 0:01:05]} e4+ {[%emt 0:00:30]} 51. Kf4 {[%emt 0:00:57]} Bxc3 {[%emt 0:01:30]} 52. Kg5 {[%emt 0:01:03]} Bh7 {[%emt 0:00:30]} 53. Ne3+ {[%emt 0:00:12]} Ke6 {[%emt 0:00:30]} 54. Ng4 {[%emt 0:01:02]} Bb2 {[%emt 0:05:30]} 55. Bf8 {[%emt 0:02:08]} Kf7 {[%emt 0:01:30]} 56. Bc5 {[%emt 0:01:54]} Bxa3 {[%emt 0:02:30]} 57. Bd4 {[%emt 0:01:30]} Bxb4 {[%emt 0:02:30]} 58. Ne5+ {[%emt 0:00:38]} Ke6 {[%emt 0:01:30]} 59. Ng6 {[%emt 0:01:13]} Bd2+ {[%emt 0:01:30]} 60. Kh5 {[%emt 0:01:10]} Bxg6+ {[%emt 0:00:30]} 61. Kxg6 {[%emt 0:00:03]} Bxh6 {[%emt 0:00:30]} 62. Kxh6 {[%emt 0:00:10]} Kd5 {[%emt 0:00:30]} 63. Be3 {[%emt 0:03:30]} a3 {[%emt 0:00:30]} 64. Bc1 {[%emt 0:00:18]} a2 {[%emt 0:00:30]} 65. Bb2 {[%emt 0:00:08]} e3 {[%emt 0:00:00]} 0-1

[Event "5th Cesme Open 2017"]
[Site "Cesme"]
[Date "2017.06.14"]
[Round "4.12"]
[White "Eminov, Orkhan"]
[Black "Arat, Ufuk Sezen"]
[Result "0-1"]
[ECO "B25"]
[WhiteElo "2290"]
[BlackElo "2398"]
[Annotator "ChessBase"]
[PlyCount "62"]
[EventType "swiss"]
[EventCountry "TUR"]
[SourceTitle "playchess.com"]
[Source "ChessBase"]
[SourceQuality "1"]
[TimeControl "5400+30"]

1. e4 {[%emt 0:00:30]} g6 {[%emt 0:04:00]} 2. Nc3 {[%emt 0:00:30]} Bg7 {[%emt 0:00:30]} 3. g3 {[%emt 0:01:30]} c5 {[%emt 0:00:00]} 4. Bg2 {[%emt 0:00:30]} Nc6 {[%emt 0:00:00]} 5. d3 {[%emt 0:00:00]} d6 {[%emt 0:00:00]} 6. Be3 {[%emt 0:03:00]} Nf6 {[%emt 0:00:00]} 7. h3 {[%emt 0:00:30]} O-O {[%emt 0:00:30]} 8. Nf3 {[%emt 0:04:30]} Rb8 {[%emt 0:06:30]} 9. Qd2 {[%emt 0:04:30]} b5 {[%emt 0:07:30]} 10. O-O {[%emt 0:03:30]} Re8 {[%emt 0:08:30]} 11. Bh6 {[%emt 0:03:30]} Bh8 {[%emt 0:04:30]} 12. Nh4 {[%emt 0:00:00]} b4 {[%emt 0:03:30]} 13. Nd1 {[%emt 0:07:00]} d5 {[%emt 0:05:30]} 14. exd5 {[%emt 0:06:30]} Nxd5 {[%emt 0:02:30]} 15. Ne3 {[%emt 0:14:30]} Be6 {[%emt 0:03:30]} 16. Nc4 {[%emt 0:04:30]} Qd7 {[%emt 0:04:30]} 17. Kh2 {[%emt 0:00:30]} Nb6 {[%emt 0:03:30]} 18. Nxb6 {[%emt 0:06:30]} axb6 {[%emt 0:00:30]} 19. f4 {[%emt 0:02:30]} Bd5 {[%emt 0:03:30]} 20. f5 {[%emt 0:10:30]} Bxg2 {[%emt 0:00:30]} 21. Qxg2 {[%emt 0:03:30]} Bxb2 {[%emt 0:05:30]} 22. Rae1 {[%emt 0:02:44]} Bf6 {[%emt 0:03:30]} 23. Qe4 {[%emt 0:02:57]} Ra8 {[%emt 0:13:30]} 24. fxg6 {[%emt 0:01:08]} hxg6 {[%emt 0:01:51]} 25. Nxg6 {[%emt 0:07:57]} Rxa2 {[%emt 0:00:06]} 26. Qc4 {[%emt 0:01:38]} b3 {[%emt 0:04:58]} 27. Re2 {[%emt 0:04:39]} Rxc2 {[%emt 0:09:52]} 28. Rxc2 {[%emt 0:00:44]} bxc2 {[%emt 0:00:08]} 29. Nf4 {[%emt 0:03:37]} Nd4 {[%emt 0:00:09]} 30. g4 {[%emt 0:00:34]} Be5 {[%emt 0:00:43]} 31. Kg2 {[%emt 0:00:17]} Qc6+ {[%emt 0:00:14]} 0-1

[Event "5th Cesme Open 2017"]
[Site "Cesme"]
[Date "2017.06.14"]
[Round "4.14"]
[White "Sahin, Doga Boran"]
[Black "Morchiashvili, Bachana"]
[Result "1/2-1/2"]
[ECO "B94"]
[WhiteElo "2072"]
[BlackElo "2403"]
[Annotator "ChessBase"]
[PlyCount "62"]
[EventType "swiss"]
[EventCountry "TUR"]
[SourceTitle "playchess.com"]
[Source "ChessBase"]
[SourceQuality "1"]
[TimeControl "5400+30"]

1. e4 {[%emt 0:00:30]} c5 {[%emt 0:01:00]} 2. Nf3 {[%emt 0:00:00]} d6 {[%emt 0:01:30]} 3. d4 {[%emt 0:00:00]} cxd4 {[%emt 0:00:30]} 4. Nxd4 {[%emt 0:00:00]} Nf6 {[%emt 0:00:00]} 5. Nc3 {[%emt 0:00:00]} a6 {[%emt 0:02:00]} 6. Bg5 {[%emt 0:01:30]} Nbd7 {[%emt 0:02:30]} 7. f4 {[%emt 0:01:30]} g6 {[%emt 0:06:30]} 8. Qf3 {[%emt 0:05:30]} Bg7 {[%emt 0:00:30]} 9. O-O-O {[%emt 0:01:30]} O-O {[%emt 0:03:30]} 10. h4 {[%emt 0:03:30]} e5 {[%emt 0:14:30]} 11. Nb3 {[%emt 0:09:30]} exf4 {[%emt 0:01:30]} 12. Rxd6 {[%emt 0:08:30]} Qe7 {[%emt 0:11:30]} 13. Rd2 {[%emt 0:13:30]} Ne5 {[%emt 0:11:30]} 14. Qxf4 {[%emt 0:13:30]} h6 {[%emt 0:00:30]} 15. Bxf6 {[%emt 0:06:30]} Qxf6 {[%emt 0:00:30]} 16. Qxf6 {[%emt 0:02:30]} Bxf6 {[%emt 0:00:00]} 17. Nd5 {[%emt 0:00:00]} Bg7 {[%emt 0:01:00]} 18. Ne7+ {[%emt 0:01:00]} Kh7 {[%emt 0:00:30]} 19. Nxc8 {[%emt 0:00:30]} Raxc8 {[%emt 0:01:30]} 20. Be2 {[%emt 0:02:30]} h5 {[%emt 0:00:30]} 21. Kb1 {[%emt 0:01:30]} Rfe8 {[%emt 0:02:30]} 22. Rf1 {[%emt 0:02:30]} Re7 {[%emt 0:00:30]} 23. Rd5 {[%emt 0:08:48]} Nc4 {[%emt 0:07:30]} 24. Bxc4 {[%emt 0:02:30]} Rxc4 {[%emt 0:00:00]} 25. Nd2 {[%emt 0:00:03]} Rb4 {[%emt 0:01:00]} 26. b3 {[%emt 0:00:05]} Rb6 {[%emt 0:04:30]} 27. c4 {[%emt 0:01:34]} Rf6 {[%emt 0:07:12]} 28. Nf3 {[%emt 0:06:14]} Kh6 {[%emt 0:09:44]} 29. e5 {[%emt 0:00:37]} Rf4 {[%emt 0:01:12]} 30. Re1 {[%emt 0:02:06]} Rg4 {[%emt 0:00:18]} 31. Rd2 {[%emt 0:02:39]} b5 {[%emt 0:02:45]} 1/2-1/2

[Event "5th Cesme Open 2017"]
[Site "Cesme"]
[Date "2017.06.14"]
[Round "4.18"]
[White "Ainutdinov, Alexander"]
[Black "Kilic, Efe Mert"]
[Result "1-0"]
[ECO "C46"]
[WhiteElo "2007"]
[BlackElo "2331"]
[Annotator "ChessBase"]
[PlyCount "63"]
[EventType "swiss"]
[EventCountry "TUR"]
[SourceTitle "playchess.com"]
[Source "ChessBase"]
[SourceQuality "1"]
[TimeControl "5400+30"]

1. e4 {[%emt 0:00:30]} e5 {[%emt 0:09:00]} 2. Nf3 {[%emt 0:00:00]} Nc6 {[%emt 0:00:30]} 3. Nc3 {[%emt 0:01:00]} g6 {[%emt 0:01:30]} 4. d4 {[%emt 0:00:30]} exd4 {[%emt 0:00:30]} 5. Nxd4 {[%emt 0:00:30]} Bg7 {[%emt 0:00:30]} 6. Be3 {[%emt 0:00:30]} Nge7 {[%emt 0:00:00]} 7. Bc4 {[%emt 0:07:30]} Na5 {[%emt 0:00:00]} 8. Be2 {[%emt 0:01:30]} d6 {[%emt 0:03:30]} 9. Qd2 {[%emt 0:01:30]} a6 {[%emt 0:08:30]} 10. Bg5 {[%emt 0:09:30]} f6 {[%emt 0:02:30]} 11. Bh6 {[%emt 0:01:30]} O-O {[%emt 0:00:30]} 12. Bxg7 {[%emt 0:07:30]} Kxg7 {[%emt 0:00:30]} 13. Nd5 {[%emt 0:00:30]} Nac6 {[%emt 0:00:30]} 14. O-O {[%emt 0:03:30]} Nxd5 {[%emt 0:08:30]} 15. exd5 {[%emt 0:00:30]} Nxd4 {[%emt 0:00:00]} 16. Qxd4 {[%emt 0:00:30]} Re8 {[%emt 0:00:00]} 17. Rfe1 {[%emt 0:01:30]} Bd7 {[%emt 0:01:30]} 18. f4 {[%emt 0:03:30]} b5 {[%emt 0:08:30]} 19. Bf3 {[%emt 0:02:30]} Qb8 {[%emt 0:06:30]} 20. Rxe8 {[%emt 0:02:30]} Qxe8 {[%emt 0:00:30]} 21. Kf2 {[%emt 0:00:30]} Qb8 {[%emt 0:02:30]} 22. Re1 {[%emt 0:00:30]} Kf7 {[%emt 0:00:00]} 23. Qe3 {[%emt 0:10:30]} Qb6 {[%emt 0:01:00]} 24. Kf1 {[%emt 0:03:30]} Qxe3 {[%emt 0:00:30]} 25. Rxe3 {[%emt 0:00:00]} b4 {[%emt 0:00:30]} 26. Ke2 {[%emt 0:02:00]} Rb8 {[%emt 0:00:30]} 27. Kd3 {[%emt 0:01:30]} Rb5 {[%emt 0:01:30]} 28. Kd4 {[%emt 0:01:30]} Rc5 {[%emt 0:00:30]} 29. c4 {[%emt 0:00:30]} Bf5 {[%emt 0:01:30]} 30. a3 {[%emt 0:00:30]} bxa3 {[%emt 0:00:30]} 31. b4 {[%emt 0:00:30]} Bd3 {[%emt 0:04:30]} 32. Rxd3 {[%emt 0:00:30]} 1-0

[Event "5th Cesme Open 2017"]
[Site "Cesme"]
[Date "2017.06.14"]
[Round "4.19"]
[White "Ozsakallioglu, Okan"]
[Black "Arman, Deniz"]
[Result "1-0"]
[ECO "B44"]
[WhiteElo "1925"]
[BlackElo "2324"]
[Annotator "RC"]
[PlyCount "79"]
[EventType "swiss"]
[EventCountry "TUR"]
[SourceTitle "playchess.com"]
[Source "ChessBase"]
[SourceQuality "1"]
[TimeControl "5400+30"]

1. e4 {[%emt 0:01:30]} c5 {[%emt 0:01:00]} 2. Nf3 {[%emt 0:00:00]} e6 {[%emt 0:00:00]} 3. c4 {[%emt 0:01:00]} Nc6 {[%emt 0:11:00]} 4. Nc3 {[%emt 0:01:30]} Nf6 {[%emt 0:10:30]} 5. d4 {[%emt 0:01:30]} cxd4 {[%emt 0:03:30]} 6. Nxd4 {[%emt 0:00:30]} Bb4 {[%emt 0:03:30]} 7. Nxc6 {[%emt 0:00:00]} bxc6 {[%emt 0:11:30]} 8. Bd3 {[%emt 0:00:00]} e5 {[%emt 0:02:30]} 9. O-O {[%emt 0:00:30]} O-O {[%emt 0:11:30]} 10. Bd2 {[%emt 0:00:30]} a5 {[%emt 0:03:30]} 11. a3 {[%emt 0:02:30]} Be7 {[%emt 0:02:30]} 12. Qe2 {[%emt 0:03:30]} d6 {[%emt 0:06:30]} 13. b4 {[%emt 0:02:30]} axb4 {[%emt 0:04:30]} 14. axb4 {[%emt 0:00:00]} Bg4 {[%emt 0:00:30]} 15. Rxa8 {[%emt 0:01:00]} Qxa8 {[%emt 0:00:00]} 16. f3 {[%emt 0:00:30]} Be6 {[%emt 0:00:00]} 17. b5 {[%emt 0:00:00]} Nd7 {[%emt 0:03:30]} 18. Be3 {[%emt 0:03:00]} Qa3 {[%emt 0:05:59]} 19. Nb1 {[%emt 0:06:30]} Qa4 {[%emt 0:00:57]} 20. Rc1 {[%emt 0:03:30]} cxb5 {[%emt 0:06:43]} 21. Nc3 {[%emt 0:03:30]} Qa8 {[%emt 0:02:49]} 22. cxb5 {[%emt 0:00:30]} Rb8 {[%emt 0:01:39]} 23. Qb2 {[%emt 0:00:30]} Bd8 {[%emt 0:00:47]} 24. Ra1 {[%emt 0:00:30]} Qb7 {[%emt 0:00:18]} 25. Ra7 {[%emt 0:08:30]} Qc8 {[%emt 0:00:03]} 26. Na4 {[%emt 0:00:30]} Nc5 {[%emt 0:05:48]} 27. Nxc5 {[%emt 0:01:30]} dxc5 {[%emt 0:00:03]} 28. Qxe5 {[%emt 0:00:30]} c4 {[%emt 0:00:21]} 29. Bc2 {[%emt 0:00:00]} Bf6 {[%emt 0:00:35]} 30. Qc5 {[%emt 0:00:00]} Qd8 {[%emt 0:01:32]} 31. b6 {[%emt 0:00:30]} Rc8 {[%emt 0:01:53]} 32. Rc7 {[%emt 0:00:30]} Rb8 {[%emt 0:00:13]} 33. e5 {[%emt 0:00:00]} Bg5 {[%emt 0:00:47]} 34. f4 {[%emt 0:00:00]} Bh6 {[%emt 0:00:26]} 35. b7 {[%emt 0:01:30]} g6 {[%emt 0:00:09]} 36. Qd6 {[%emt 0:03:30]} Qe8 {[%emt 0:00:03]} 37. Re7 {[%emt 0:00:30]} Qd8 {[%emt 0:01:22]} 38. Qxd8+ {[%emt 0:01:30]} Rxd8 {[%emt 0:00:04]} 39. Ba7 {[%emt 0:00:00]} Bf8 {[%emt 0:00:56]} 40. Rc7 {[%emt 0:00:00]} 1-0